[Event "*** SCC Grand Prix: Titled Tuesday Blitz"]
[Site "Chess.com"]
[Date "2020.08.25"]
[Round "1"]
[White "mr65"]
[Black "Schandenfreude"]
[Result "1/2-1/2"]
[WhiteElo "2164"]
[BlackElo "2503"]
[TimeControl "180+1"]
[EndTime "10:08:34 PDT"]
[Termination "Game drawn - insufficient material"]

1. e4 {[%clk 0:02:57.4]} 1... c5 {[%clk 0:02:58.5]} 2. Nf3 {[%clk 0:02:56.8]}
2... d6 {[%clk 0:02:58.5]} 3. Nc3 {[%clk 0:02:55.9]} 3... Nf6 {[%clk 0:02:55.1]}
4. e5 {[%clk 0:02:55.6]} 4... dxe5 {[%clk 0:02:55.1]} 5. Nxe5 {[%clk 0:02:55.1]}
5... Nbd7 {[%clk 0:02:55.4]} 6. Nc4 {[%clk 0:02:53.8]} 6... e6 {[%clk
0:02:52.7]} 7. g3 {[%clk 0:02:51.3]} 7... Be7 {[%clk 0:02:47.8]} 8. Bg2 {[%clk
0:02:50.6]} 8... Nb6 {[%clk 0:02:47.6]} 9. Ne5 {[%clk 0:02:46.5]} 9... Nbd7
{[%clk 0:02:47.5]} 10. Nc4 {[%clk 0:02:45.6]} 10... O-O {[%clk 0:02:47]} 11. O-O
{[%clk 0:02:44.4]} 11... Nb6 {[%clk 0:02:44.3]} 12. d3 {[%clk 0:02:39.6]} 12...
Nfd5 {[%clk 0:02:23.5]} 13. Nxd5 {[%clk 0:02:32]} 13... Nxd5 {[%clk 0:02:12.5]}
14. a4 {[%clk 0:02:31]} 14... b6 {[%clk 0:02:11]} 15. d4 {[%clk 0:02:08.7]}
15... Ba6 {[%clk 0:02:04]} 16. b3 {[%clk 0:02:03.6]} 16... cxd4 {[%clk
0:01:40.2]} 17. Bb2 {[%clk 0:01:59]} 17... Rc8 {[%clk 0:01:33.3]} 18. Bxd4
{[%clk 0:01:47.5]} 18... Bxc4 {[%clk 0:01:28.5]} 19. bxc4 {[%clk 0:01:45.3]}
19... Rxc4 {[%clk 0:01:29.4]} 20. a5 {[%clk 0:01:34.1]} 20... Nf4 {[%clk
0:00:33.9]} 21. c3 {[%clk 0:01:21]} 21... Nxg2 {[%clk 0:00:34]} 22. Kxg2 {[%clk
0:01:20.5]} 22... bxa5 {[%clk 0:00:30.2]} 23. Qg4 {[%clk 0:01:11.6]} 23... Bf6
{[%clk 0:00:20.5]} 24. Bxf6 {[%clk 0:01:10.9]} 24... Rxg4 {[%clk 0:00:13.8]} 25.
Bxd8 {[%clk 0:01:10.3]} 25... Rxd8 {[%clk 0:00:14.7]} 26. Rxa5 {[%clk
0:01:09.1]} 26... Rc4 {[%clk 0:00:14.2]} 27. Rxa7 {[%clk 0:01:05.8]} 27... Rxc3
{[%clk 0:00:14.3]} 28. Rd1 {[%clk 0:01:03.3]} 28... Rf8 {[%clk 0:00:11.3]} 29.
h4 {[%clk 0:01:01.3]} 29... h6 {[%clk 0:00:06.6]} 30. Rad7 {[%clk 0:00:57.1]}
30... Rc5 {[%clk 0:00:05.8]} 31. Rd8 {[%clk 0:00:56.2]} 31... Rxd8 {[%clk
0:00:04.9]} 32. Rxd8+ {[%clk 0:00:55.3]} 32... Kh7 {[%clk 0:00:05.6]} 33. Rd7
{[%clk 0:00:51.1]} 33... Kg6 {[%clk 0:00:05.3]} 34. Rd4 {[%clk 0:00:48.6]} 34...
Kf6 {[%clk 0:00:05.2]} 35. Rf4+ {[%clk 0:00:47.9]} 35... Ke7 {[%clk 0:00:05.1]}
36. Rg4 {[%clk 0:00:47.6]} 36... Kf6 {[%clk 0:00:03.8]} 37. Rf4+ {[%clk
0:00:47.4]} 37... Ke7 {[%clk 0:00:04.1]} 38. Rg4 {[%clk 0:00:47]} 38... g6
{[%clk 0:00:04.5]} 39. Ra4 {[%clk 0:00:46]} 39... Kf6 {[%clk 0:00:04.9]} 40.
Rf4+ {[%clk 0:00:45.5]} 40... Kg7 {[%clk 0:00:05.1]} 41. Ra4 {[%clk 0:00:44.7]}
41... Rd5 {[%clk 0:00:05.6]} 42. Rb4 {[%clk 0:00:44.1]} 42... Kf6 {[%clk
0:00:05.6]} 43. Ra4 {[%clk 0:00:43.9]} 43... Rf5 {[%clk 0:00:05.7]} 44. Rb4
{[%clk 0:00:43.4]} 44... g5 {[%clk 0:00:04.8]} 45. hxg5+ {[%clk 0:00:42.5]}
45... Rxg5 {[%clk 0:00:05.7]} 46. Ra4 {[%clk 0:00:41.7]} 46... Kg6 {[%clk
0:00:05.8]} 47. Rb4 {[%clk 0:00:41.4]} 47... h5 {[%clk 0:00:05.7]} 48. Ra4
{[%clk 0:00:40.8]} 48... Rg4 {[%clk 0:00:05.5]} 49. Ra5 {[%clk 0:00:40]} 49...
h4 {[%clk 0:00:04.6]} 50. Kh3 {[%clk 0:00:35.9]} 50... f5 {[%clk 0:00:03]} 51.
gxh4 {[%clk 0:00:33.6]} 51... Kh5 {[%clk 0:00:02.8]} 52. Re5 {[%clk 0:00:29.5]}
52... Rxh4+ {[%clk 0:00:02.7]} 53. Kg3 {[%clk 0:00:29.1]} 53... Rg4+ {[%clk
0:00:03.2]} 54. Kf3 {[%clk 0:00:28.2]} 54... Ra4 {[%clk 0:00:02.3]} 55. Rxe6
{[%clk 0:00:26.6]} 55... Kg5 {[%clk 0:00:03.2]} 56. Kg3 {[%clk 0:00:22.7]} 56...
Ra3+ {[%clk 0:00:03.3]} 57. Kg2 {[%clk 0:00:21.6]} 57... Kg4 {[%clk 0:00:03.2]}
58. Rg6+ {[%clk 0:00:18.8]} 58... Kf4 {[%clk 0:00:03.5]} 59. Rg8 {[%clk
0:00:18.6]} 59... Ra2 {[%clk 0:00:03.4]} 60. Re8 {[%clk 0:00:17.6]} 60... Ra4
{[%clk 0:00:02.9]} 61. Rf8 {[%clk 0:00:16.8]} 61... Re4 {[%clk 0:00:02.7]} 62.
Rg8 {[%clk 0:00:16.2]} 62... Rd4 {[%clk 0:00:02.6]} 63. Re8 {[%clk 0:00:15.8]}
63... Re4 {[%clk 0:00:02.5]} 64. Rxe4+ {[%clk 0:00:14.4]} 64... fxe4 {[%clk
0:00:02.2]} 65. Kf1 {[%clk 0:00:13.4]} 65... Kf3 {[%clk 0:00:02.5]} 66. Ke1
{[%clk 0:00:13]} 66... e3 {[%clk 0:00:02.9]} 67. fxe3 {[%clk 0:00:12.1]} 67...
Kxe3 {[%clk 0:00:03.8]} 1/2-1/2

[Event "*** SCC Grand Prix: Titled Tuesday Blitz"]
[Site "Chess.com"]
[Date "2020.08.25"]
[Round "1"]
[White "Fandorine"]
[Black "ketster"]
[Result "1-0"]
[WhiteElo "2933"]
[BlackElo "2445"]
[TimeControl "180+1"]
[EndTime "10:08:44 PDT"]
[Termination "Fandorine won on time"]

1. d4 {[%clk 0:02:57.9]} 1... Nf6 {[%clk 0:02:59.1]} 2. c4 {[%clk 0:02:57.6]}
2... e6 {[%clk 0:02:57.9]} 3. Nf3 {[%clk 0:02:57.6]} 3... d5 {[%clk 0:02:54.5]}
4. g3 {[%clk 0:02:57.1]} 4... Bb4+ {[%clk 0:02:41.8]} 5. Bd2 {[%clk 0:02:53.9]}
5... Be7 {[%clk 0:02:41.4]} 6. Bg2 {[%clk 0:02:53.5]} 6... O-O {[%clk
0:02:40.8]} 7. O-O {[%clk 0:02:53.2]} 7... Nbd7 {[%clk 0:02:33.9]} 8. a4 {[%clk
0:02:30.8]} 8... a5 {[%clk 0:02:30.7]} 9. Na3 {[%clk 0:02:11.1]} 9... c5 {[%clk
0:02:14.4]} 10. cxd5 {[%clk 0:02:02.6]} 10... Nxd5 {[%clk 0:02:12.2]} 11. Rc1
{[%clk 0:01:56.2]} 11... b6 {[%clk 0:01:48.4]} 12. dxc5 {[%clk 0:01:26.9]} 12...
Nxc5 {[%clk 0:01:45.9]} 13. Nb5 {[%clk 0:01:24.9]} 13... Bb7 {[%clk 0:01:39.4]}
14. Nfd4 {[%clk 0:01:18.8]} 14... Rc8 {[%clk 0:01:33.8]} 15. h4 {[%clk
0:01:05.1]} 15... Bf6 {[%clk 0:01:29.8]} 16. e3 {[%clk 0:00:59.1]} 16... Qe7
{[%clk 0:01:15.4]} 17. b3 {[%clk 0:00:47.2]} 17... Rfd8 {[%clk 0:01:07.8]} 18.
Qg4 {[%clk 0:00:39.5]} 18... Nd3 {[%clk 0:00:51.7]} 19. Rxc8 {[%clk 0:00:38.7]}
19... Rxc8 {[%clk 0:00:52]} 20. Qe2 {[%clk 0:00:23.3]} 20... Nc5 {[%clk
0:00:44]} 21. Rc1 {[%clk 0:00:23.5]} 21... Qd8 {[%clk 0:00:41.3]} 22. Be1 {[%clk
0:00:20.5]} 22... Ba6 {[%clk 0:00:29.9]} 23. Qd1 {[%clk 0:00:20.8]} 23... Bb7
{[%clk 0:00:24.7]} 24. Rc4 {[%clk 0:00:17.7]} 24... h6 {[%clk 0:00:23.8]} 25. e4
{[%clk 0:00:10.4]} 25... Ne7 {[%clk 0:00:19.1]} 26. e5 {[%clk 0:00:11]} 26...
Bxe5 {[%clk 0:00:18.2]} 27. Bxb7 {[%clk 0:00:10.5]} 27... Nxb7 {[%clk
0:00:16.7]} 28. Rxc8 {[%clk 0:00:10.4]} 28... Qxc8 {[%clk 0:00:13.3]} 29. Nf3
{[%clk 0:00:09.1]} 29... Bf6 {[%clk 0:00:12.4]} 30. Qd3 {[%clk 0:00:09]} 30...
Nc5 {[%clk 0:00:12.1]} 31. Qc4 {[%clk 0:00:08.6]} 31... Nd5 {[%clk 0:00:11.4]}
32. Bd2 {[%clk 0:00:06.4]} 32... Qc6 {[%clk 0:00:10]} 33. Nfd4 {[%clk 0:00:06]}
33... Qd7 {[%clk 0:00:09.9]} 34. Bxa5 {[%clk 0:00:05.7]} 34... Ne4 {[%clk
0:00:05.7]} 35. Be1 {[%clk 0:00:05.5]} 35... Kh7 {[%clk 0:00:05]} 36. Qc6 {[%clk
0:00:05.6]} 36... Qxc6 {[%clk 0:00:04.6]} 37. Nxc6 {[%clk 0:00:06.5]} 37... Nc5
{[%clk 0:00:04]} 38. a5 {[%clk 0:00:05.6]} 38... bxa5 {[%clk 0:00:03.4]} 39.
Nxa5 {[%clk 0:00:06.5]} 39... Nb6 {[%clk 0:00:02.5]} 40. b4 {[%clk 0:00:02.9]}
40... Nd3 {[%clk 0:00:02.9]} 41. Bd2 {[%clk 0:00:03.5]} 41... Nd5 {[%clk
0:00:03.4]} 42. Nc6 {[%clk 0:00:03]} 42... Be5 {[%clk 0:00:02.1]} 43. Nxe5
{[%clk 0:00:02.9]} 43... Nxe5 {[%clk 0:00:01.9]} 44. Nd4 {[%clk 0:00:03.1]}
44... Nc4 {[%clk 0:00:02.3]} 45. Be1 {[%clk 0:00:03.6]} 45... Ncb6 {[%clk
0:00:02.7]} 46. Nc2 {[%clk 0:00:04]} 46... g6 {[%clk 0:00:03.1]} 47. Kf1 {[%clk
0:00:04.5]} 47... f6 {[%clk 0:00:03.3]} 48. Ke2 {[%clk 0:00:05.1]} 48... Kg7
{[%clk 0:00:03.8]} 49. Kd3 {[%clk 0:00:05.7]} 49... h5 {[%clk 0:00:04.2]} 50.
Nd4 {[%clk 0:00:06]} 50... Kf7 {[%clk 0:00:04.6]} 51. Nb3 {[%clk 0:00:05.3]}
51... Ke7 {[%clk 0:00:05]} 52. Bd2 {[%clk 0:00:05.8]} 52... Kd6 {[%clk
0:00:05.4]} 53. Nc5 {[%clk 0:00:06.4]} 53... Nd7 {[%clk 0:00:05.1]} 54. Ne4+
{[%clk 0:00:06.7]} 54... Ke7 {[%clk 0:00:04.9]} 55. b5 {[%clk 0:00:06.4]} 55...
N7b6 {[%clk 0:00:05]} 56. Ba5 {[%clk 0:00:05.6]} 56... e5 {[%clk 0:00:04.8]} 57.
Nc3 {[%clk 0:00:05.9]} 57... Nxc3 {[%clk 0:00:04.2]} 58. Kxc3 {[%clk 0:00:06.1]}
58... Nd7 {[%clk 0:00:04]} 59. Kc4 {[%clk 0:00:05.7]} 59... Kd6 {[%clk
0:00:04.1]} 60. Bb4+ {[%clk 0:00:05.4]} 60... Kc7 {[%clk 0:00:03.9]} 61. Bc5
{[%clk 0:00:05.8]} 61... Nf8 {[%clk 0:00:02.8]} 62. Bxf8 {[%clk 0:00:05.5]} 1-0

[Event "*** SCC Grand Prix: Titled Tuesday Blitz"]
[Site "Chess.com"]
[Date "2020.08.25"]
[Round "1"]
[White "dosto07"]
[Black "Koksik_13"]
[Result "0-1"]
[WhiteElo "2326"]
[BlackElo "2658"]
[TimeControl "180+1"]
[EndTime "10:08:45 PDT"]
[Termination "Koksik_13 won by checkmate"]

1. e4 {[%clk 0:02:59.6]} 1... e6 {[%clk 0:02:47.3]} 2. d4 {[%clk 0:02:58.3]}
2... d5 {[%clk 0:02:48.2]} 3. Nd2 {[%clk 0:02:55.8]} 3... Nf6 {[%clk 0:02:47.9]}
4. e5 {[%clk 0:02:51.2]} 4... Nfd7 {[%clk 0:02:47.7]} 5. Bd3 {[%clk 0:02:47.6]}
5... c5 {[%clk 0:02:48.6]} 6. c3 {[%clk 0:02:46.9]} 6... Nc6 {[%clk 0:02:48.6]}
7. Ne2 {[%clk 0:02:44.4]} 7... cxd4 {[%clk 0:02:49.5]} 8. cxd4 {[%clk
0:02:43.6]} 8... f6 {[%clk 0:02:50.4]} 9. exf6 {[%clk 0:02:43.2]} 9... Qxf6
{[%clk 0:02:51.3]} 10. Nf3 {[%clk 0:02:43.4]} 10... h6 {[%clk 0:02:51.4]} 11.
O-O {[%clk 0:02:42.6]} 11... Bd6 {[%clk 0:02:51.5]} 12. Be3 {[%clk 0:02:38.3]}
12... O-O {[%clk 0:02:51.5]} 13. Nc3 {[%clk 0:02:36.6]} 13... Rd8 {[%clk
0:02:51.9]} 14. a3 {[%clk 0:02:34.1]} 14... Nf8 {[%clk 0:02:52]} 15. h3 {[%clk
0:02:33.7]} 15... Bd7 {[%clk 0:02:52]} 16. Nh2 {[%clk 0:02:31]} 16... Be8 {[%clk
0:02:51.5]} 17. Ng4 {[%clk 0:02:30.1]} 17... Qe7 {[%clk 0:02:49.4]} 18. f4
{[%clk 0:02:29]} 18... Kh8 {[%clk 0:02:43.1]} 19. Rc1 {[%clk 0:02:27.5]} 19...
Bh5 {[%clk 0:02:42.6]} 20. Be2 {[%clk 0:02:20.2]} 20... Rac8 {[%clk 0:02:35.1]}
21. Ne5 {[%clk 0:02:16.8]} 21... Bxe2 {[%clk 0:02:33.3]} 22. Qxe2 {[%clk
0:02:16]} 22... Qf6 {[%clk 0:02:28.4]} 23. Qh5 {[%clk 0:02:10.6]} 23... Kg8
{[%clk 0:02:14.7]} 24. Rf3 {[%clk 0:01:55.8]} 24... Ne7 {[%clk 0:02:09.8]} 25.
g4 {[%clk 0:01:43.7]} 25... Bxe5 {[%clk 0:02:06.5]} 26. dxe5 {[%clk 0:01:39.8]}
26... Qf7 {[%clk 0:02:02.8]} 27. Qxf7+ {[%clk 0:01:36.1]} 27... Kxf7 {[%clk
0:02:03.7]} 28. Bxa7 {[%clk 0:01:30.8]} 28... d4 {[%clk 0:02:03.1]} 29. Ne2
{[%clk 0:01:30]} 29... d3 {[%clk 0:01:52.5]} 30. Nc3 {[%clk 0:01:26.5]} 30...
Nfg6 {[%clk 0:01:48.2]} 31. Rd1 {[%clk 0:01:22.5]} 31... Rc4 {[%clk 0:01:43.7]}
32. Rfxd3 {[%clk 0:01:19.7]} 32... Rxd3 {[%clk 0:01:43.2]} 33. Rxd3 {[%clk
0:01:20.1]} 33... Rxf4 {[%clk 0:01:38.1]} 34. Rd7 {[%clk 0:01:14.6]} 34... Nxe5
{[%clk 0:01:21.5]} 35. Rxb7 {[%clk 0:01:13.6]} 35... Rc4 {[%clk 0:01:12.2]} 36.
Nb5 {[%clk 0:01:10]} 36... Kf6 {[%clk 0:00:59.6]} 37. Bd4 {[%clk 0:01:02.8]}
37... Nc6 {[%clk 0:00:57.9]} 38. Bc3 {[%clk 0:00:59.3]} 38... Kg5 {[%clk
0:00:52.3]} 39. Kf2 {[%clk 0:00:51]} 39... Rf4+ {[%clk 0:00:50.2]} 40. Ke2
{[%clk 0:00:49.2]} 40... Kh4 {[%clk 0:00:46.9]} 41. Rxg7 {[%clk 0:00:47.2]}
41... Kxh3 {[%clk 0:00:46.2]} 42. b3 {[%clk 0:00:40.4]} 42... Nxg4 {[%clk
0:00:45.2]} 43. a4 {[%clk 0:00:37.4]} 43... Rf2+ {[%clk 0:00:45.2]} 44. Kd3
{[%clk 0:00:35.6]} 44... Rf3+ {[%clk 0:00:45.5]} 45. Kc4 {[%clk 0:00:33.4]}
45... Ne3+ {[%clk 0:00:45.6]} 46. Kc5 {[%clk 0:00:32.2]} 46... Nd8 {[%clk
0:00:35.6]} 47. a5 {[%clk 0:00:30.5]} 47... Nd5 {[%clk 0:00:34.8]} 48. Be5
{[%clk 0:00:23.2]} 48... Rf5 {[%clk 0:00:27.6]} 49. Bb8 {[%clk 0:00:19.7]} 49...
Nc3+ {[%clk 0:00:21.9]} 50. Kc4 {[%clk 0:00:12.4]} 50... Nxb5 {[%clk 0:00:21.9]}
51. a6 {[%clk 0:00:08.4]} 51... Nc6 {[%clk 0:00:22.1]} 52. b4 {[%clk 0:00:04.9]}
52... Nxb8 {[%clk 0:00:20.5]} 53. Rb7 {[%clk 0:00:03.4]} 53... Nxa6 {[%clk
0:00:19.9]} 54. Rxb5 {[%clk 0:00:02.6]} 54... Rxb5 {[%clk 0:00:20.8]} 55. Kxb5
{[%clk 0:00:02.5]} 55... Nxb4 {[%clk 0:00:21.7]} 56. Kxb4 {[%clk 0:00:01.6]}
56... h5 {[%clk 0:00:22.6]} 57. Kc5 {[%clk 0:00:00.5]} 57... Kg2 {[%clk
0:00:23.5]} 58. Kd6 {[%clk 0:00:01.4]} 58... h4 {[%clk 0:00:23.5]} 59. Kxe6
{[%clk 0:00:02.3]} 59... h3 {[%clk 0:00:24.4]} 60. Ke5 {[%clk 0:00:03.2]} 60...
h2 {[%clk 0:00:25.3]} 61. Kf4 {[%clk 0:00:04.1]} 61... h1=Q {[%clk 0:00:26.2]}
62. Ke3 {[%clk 0:00:03.9]} 62... Qa1 {[%clk 0:00:26.5]} 63. Ke2 {[%clk
0:00:04.4]} 63... Qd4 {[%clk 0:00:26]} 64. Ke1 {[%clk 0:00:02.5]} 64... Kf3
{[%clk 0:00:26.9]} 65. Kf1 {[%clk 0:00:01.6]} 65... Qd1# {[%clk 0:00:27.8]} 0-1

[Event "*** SCC Grand Prix: Titled Tuesday Blitz"]
[Site "Chess.com"]
[Date "2020.08.25"]
[Round "1"]
[White "Orest_Vovk"]
[Black "JonahWillow"]
[Result "1-0"]
[WhiteElo "2366"]
[BlackElo "2668"]
[TimeControl "180+1"]
[EndTime "10:08:50 PDT"]
[Termination "Orest_Vovk won by resignation"]

1. h3 {[%clk 0:02:47.8]} 1... c5 {[%clk 0:02:59.5]} 2. Nc3 {[%clk 0:02:43]} 2...
Nc6 {[%clk 0:02:58.8]} 3. g4 {[%clk 0:02:41.2]} 3... g6 {[%clk 0:02:56.5]} 4.
Bg2 {[%clk 0:02:40.8]} 4... Bg7 {[%clk 0:02:57.4]} 5. d3 {[%clk 0:02:39.5]} 5...
d6 {[%clk 0:02:57]} 6. Nf3 {[%clk 0:02:38]} 6... h6 {[%clk 0:02:52.5]} 7. O-O
{[%clk 0:02:36.3]} 7... Nf6 {[%clk 0:02:53]} 8. e4 {[%clk 0:02:35.2]} 8... O-O
{[%clk 0:02:52.7]} 9. Ne2 {[%clk 0:02:34.7]} 9... Rb8 {[%clk 0:02:41.4]} 10. Be3
{[%clk 0:02:34.2]} 10... b5 {[%clk 0:02:41.2]} 11. c3 {[%clk 0:02:34.1]} 11...
b4 {[%clk 0:02:39.3]} 12. Qd2 {[%clk 0:02:33.3]} 12... Kh7 {[%clk 0:02:38.2]}
13. g5 {[%clk 0:02:23.6]} 13... hxg5 {[%clk 0:02:36.5]} 14. Nxg5+ {[%clk
0:02:23.1]} 14... Kg8 {[%clk 0:02:37]} 15. f4 {[%clk 0:02:22.2]} 15... bxc3
{[%clk 0:02:34.2]} 16. bxc3 {[%clk 0:02:21.3]} 16... Nh5 {[%clk 0:02:16.8]} 17.
f5 {[%clk 0:02:16]} 17... Ne5 {[%clk 0:02:17]} 18. fxg6 {[%clk 0:02:04.2]} 18...
fxg6 {[%clk 0:02:07.8]} 19. Rxf8+ {[%clk 0:02:03.2]} 19... Qxf8 {[%clk
0:02:07.2]} 20. Rf1 {[%clk 0:02:03.1]} 20... Bf6 {[%clk 0:02:07.4]} 21. Kh2
{[%clk 0:00:55.4]} 21... Qg7 {[%clk 0:02:03.9]} 22. Ng3 {[%clk 0:00:42.4]} 22...
Nxg3 {[%clk 0:02:00.5]} 23. Kxg3 {[%clk 0:00:43.3]} 23... Ba6 {[%clk 0:01:56.4]}
24. c4 {[%clk 0:00:42.1]} 24... Qh6 {[%clk 0:01:47.1]} 25. Nf3 {[%clk
0:00:30.6]} 25... Nxf3 {[%clk 0:01:35.2]} 26. Rxf3 {[%clk 0:00:29.4]} 26... Qh4+
{[%clk 0:01:34.1]} 27. Kh2 {[%clk 0:00:26.3]} 27... Be5+ {[%clk 0:01:34.6]} 28.
Bf4 {[%clk 0:00:25.8]} 28... Rb2 {[%clk 0:01:31.9]} 29. Qc1 {[%clk 0:00:19.3]}
29... Rf2 {[%clk 0:01:13.8]} 30. Rxf2 {[%clk 0:00:13.2]} 30... Qxf2 {[%clk
0:01:14.7]} 31. Bxe5 {[%clk 0:00:13.5]} 31... dxe5 {[%clk 0:01:15.6]} 32. Qg5
{[%clk 0:00:13.3]} 32... Qf6 {[%clk 0:01:09.5]} 33. Qg4 {[%clk 0:00:09.9]} 33...
Kg7 {[%clk 0:01:07.6]} 34. Kg3 {[%clk 0:00:09.1]} 34... Bc8 {[%clk 0:01:05.7]}
35. Qf3 {[%clk 0:00:06.8]} 35... Qg5+ {[%clk 0:01:06]} 36. Kh2 {[%clk 0:00:07]}
36... Be6 {[%clk 0:01:05.1]} 37. Qg3 {[%clk 0:00:07.1]} 37... Qf6 {[%clk
0:01:04.6]} 38. Qe3 {[%clk 0:00:06.6]} 38... Qf4+ {[%clk 0:00:59.2]} 39. Qxf4
{[%clk 0:00:06.5]} 39... exf4 {[%clk 0:01:00.1]} 40. Kg1 {[%clk 0:00:06.7]}
40... Kf6 {[%clk 0:01:00.3]} 41. Kf2 {[%clk 0:00:05.6]} 41... Ke5 {[%clk
0:00:58.6]} 42. Kf3 {[%clk 0:00:05.8]} 42... g5 {[%clk 0:00:57.3]} 43. Bf1
{[%clk 0:00:05.8]} 43... Kd4 {[%clk 0:00:57.3]} 44. h4 {[%clk 0:00:05.5]} 44...
gxh4 {[%clk 0:00:55.3]} 45. Kxf4 {[%clk 0:00:05.8]} 45... h3 {[%clk 0:00:55]}
46. Kg3 {[%clk 0:00:05]} 46... a5 {[%clk 0:00:51.1]} 47. a3 {[%clk 0:00:04.7]}
47... Bc8 {[%clk 0:00:51.1]} 48. Be2 {[%clk 0:00:04.9]} 48... Ke3 {[%clk
0:00:48.8]} 49. Bf1 {[%clk 0:00:04.7]} 49... e5 {[%clk 0:00:47]} 50. Kh2 {[%clk
0:00:03.4]} 50... Kf2 {[%clk 0:00:45.3]} 51. Bxh3 {[%clk 0:00:03.4]} 51... Bxh3
{[%clk 0:00:44.9]} 52. Kxh3 {[%clk 0:00:04.3]} 52... Ke3 {[%clk 0:00:45.1]} 53.
Kg4 {[%clk 0:00:04.4]} 53... Kxd3 {[%clk 0:00:45.3]} 54. Kf5 {[%clk 0:00:04.8]}
54... Kd4 {[%clk 0:00:45.9]} 55. a4 {[%clk 0:00:04.2]} 55... Kxc4 {[%clk
0:00:46.5]} 56. Kxe5 {[%clk 0:00:04.7]} 56... Kb4 {[%clk 0:00:39]} 57. Kd6
{[%clk 0:00:04.8]} 57... c4 {[%clk 0:00:39.2]} 58. e5 {[%clk 0:00:05.7]} 58...
c3 {[%clk 0:00:39.8]} 59. e6 {[%clk 0:00:06.6]} 59... c2 {[%clk 0:00:40.7]} 60.
e7 {[%clk 0:00:07.5]} 60... c1=Q {[%clk 0:00:41.6]} 61. e8=Q {[%clk 0:00:08.4]}
61... Qc5+ {[%clk 0:00:31.6]} 62. Kd7 {[%clk 0:00:08.3]} 62... Qd5+ {[%clk
0:00:24.8]} 63. Kc7 {[%clk 0:00:06.3]} 63... Qc4+ {[%clk 0:00:23.5]} 64. Kb6
{[%clk 0:00:05.5]} 64... Qc5+ {[%clk 0:00:21.3]} 65. Ka6 {[%clk 0:00:04.3]}
65... Qd6+ {[%clk 0:00:20.6]} 66. Kb7 {[%clk 0:00:03]} 66... Qd5+ {[%clk
0:00:20.9]} 67. Ka6 {[%clk 0:00:03]} 67... Qd3+ {[%clk 0:00:18.5]} 68. Qb5+
{[%clk 0:00:01.5]} 68... Qxb5+ {[%clk 0:00:05.9]} 69. axb5 {[%clk 0:00:02.4]}
69... a4 {[%clk 0:00:06.8]} 70. b6 {[%clk 0:00:03.2]} 70... a3 {[%clk
0:00:07.7]} 71. b7 {[%clk 0:00:04.1]} 71... a2 {[%clk 0:00:08.6]} 72. b8=Q+
{[%clk 0:00:05]} 72... Kc3 {[%clk 0:00:09]} 73. Qh8+ {[%clk 0:00:05.5]} 73...
Kb3 {[%clk 0:00:09.2]} 74. Qa1 {[%clk 0:00:06.4]} 1-0